Cogmind - Beta 13 @@@ ROGUE MODE // 2024.06.04 @ 09:11:19 Player: N.W.L Result: Destroyed by X-62 Marksman with Pulse Rifle Performance ------------- Evolutions (3) 1500 Regions Visited (12) 2400 Robots Destroyed (243) 1215 Value Destroyed (6626) 6626 Prototype IDs (57) 1140 Alien Tech Used (0) 0 Bonus (580) 580 TOTAL SCORE: 13461 Bonus ------- High Alert Combat Kills 226 Follower Combat Kills 290 Aligned with FarCom 300 Met Imprinter 300 Friendly Fire -536 Cogmind --------- Core Integrity 0/700 Matter 113/300 Energy 70/100 System Corruption 6% Temperature Cool (81) Movement Walking (203) Ox1 Location -6/Proximity Caves Parts ------- > --- POWER (1) -------- (None) > --- PROPULSION (5) --- Flexi-carbon Leg Zionite Composite Leg I Zionite Composite Leg I > --- UTILITY (5) ------ Experimental Heat Sink Huge Storage Unit Heavy Armor Plating Medium Reactive Plating > --- WEAPON (2) ------- Mini Assault Cannon Mini Assault Cannon > --- INVENTORY (25) --- High-capacity Matter Pod (0) High-capacity Matter Pod (0) Machine Analyzer Long-range Terrain Scanner Surveybot 24 Chip Precision Matter Filter Improved Particle Charger Kinecellerator Improved Transmission Jammer Cloak of Protection Zionite Light Carapace Improved Powered Armor Improved Powered Armor Makeshift Hacking Suite System Restoration Module Long-range Tractor Beam Improved Trap Extractor (4/6 Dirty Bomb) Drone Bay (2/2) Gauss Rifle Railgun Railgun Missile Launcher Heavy Missile Launcher Improved Datajack Impact Mace Peak State ------------ > --- POWER ------------ Zionite Light DM Reactor > --- PROPULSION ------- Light Treads Carbon-fiber Leg Carbon-fiber Leg Zionite Composite Leg I Zionite Composite Leg I > --- UTILITY ---------- Experimental Heat Sink Huge Storage Unit Surveybot 24 Scanner Zionite Heavy Carapace > --- WEAPON ----------- Railgun Mini Assault Cannon > --- INVENTORY -------- High-capacity Matter Pod High-capacity Matter Pod Machine Analyzer Surveybot 24 Chip Kinecellerator Cloak of Protection Heavy Armor Plating Zionite Light Carapace Zionite Heavy Carapace Medium Reactive Plating Makeshift Hacking Suite System Restoration Module Long-range Tractor Beam Improved Trap Extractor Drone Bay Railgun Mini Assault Cannon Missile Launcher Heavy Missile Launcher Improved Datajack Impact Mace Self-destruct Interrupter [Rating: 77] Favorites ----------- Power Improved Ion Engine Engine Improved Ion Engine Reactor Zionite Light DM Reactor Propulsion Light Treads Treads Light Treads Leg Zionite Composite Leg I Hover Unit Zionite Glidesys I Utility Huge Storage Unit Device Improved Trap Extractor Storage Huge Storage Unit Processor Advanced Visual Processing Unit Hackware Hacking Suite Protection Improved Medium Armor Plating Weapon Mini Assault Cannon Energy Gun Small Laser Energy Cannon Heavy Ion Cannon Ballistic Gun Gauss Rifle Ballistic Cannon Mini Assault Cannon Launcher Heavy Missile Launcher Special Weapon Mining Laser Impact Weapon Impact Mace Slashing Weapon Blade Saw Special Melee Weapon Datajack Build | -11 -10 -10 -10 -9 -8 -8 -7 -7 -7 -7 -7 -6 ------- Run | Yrd Mat Min Exi Min Mat Sto Fac Low Low Zio Dee Pro Slots Evolved 6 | . . . . . 4 . 2 . . . . . Power . | . . . . . . . . . . . . . Propulsion 3 | . . . . . 2 . 1 . . . . . Utility 3 | . . . . . 2 . 1 . . . . . Weapon . | . . . . . . . . . . . . . Parts Attached 261 | 8 12 15 1 6 49 31 47 7 2 28 30 25 Power 9 | 1 2 1 . . 1 1 1 . . . 2 . Engine 7 | 1 2 1 . . 1 1 1 . . . . . Core . | . . . . . . . . . . . . . Reactor 2 | . . . . . . . . . . . 2 . Propulsion 52 | 2 1 4 . . 9 14 11 . . 4 4 3 Treads 46 | 2 1 4 . . 9 14 11 . . 4 1 . Leg 5 | . . . . . . . . . . . 2 3 Wheel . | . . . . . . . . . . . . . Hover 1 | . . . . . . . . . . . 1 . Flight . | . . . . . . . . . . . . . Utility 75 | 2 2 2 . 1 12 8 17 1 . 5 13 12 Device 34 | 1 . . . 1 5 5 8 1 . 3 3 7 Storage 4 | 1 2 1 . . . . . . . . . . Processor 2 | . . . . . 1 . 1 . . . . . Hackware 2 | . . . . . 2 . . . . . . . Protection 33 | . . 1 . . 4 3 8 . . 2 10 5 Artifact . | . . . . . . . . . . . . . Weapon 125 | 3 7 8 1 5 27 8 18 6 2 19 11 10 Energy Gun 6 | 2 . 1 . 1 1 . . . . . 1 . Energy Cannon 13 | . 3 1 . 1 1 2 . 1 1 2 1 . Ballistic Gun 43 | 1 2 3 . 2 10 4 10 . . 6 4 1 Ballistic Cannon 19 | . . . . . 4 1 3 2 . 2 3 4 Launcher 20 | . . 3 . 1 3 . . 1 1 6 1 4 Special Weapon 3 | . 2 . . . 1 . . . . . . . Impact Weapon 14 | . . . . . 5 1 3 1 . 3 . 1 Slashing Weapon 2 | . . . . . 2 . . . . . . . Piercing Weapon . | . . . . . . . . . . . . . Special Melee Weapon 5 | . . . 1 . . . 2 1 . . 1 . Unidentified Prototypes 13 | . . . . . 4 1 . . . . 7 1 Corrupted Parts 1 | . . . . . 1 . . . . . . . System Corruption 1 | . . . . . 1 . . . . . . . Parts Lost 37 | . . 8 . . 4 2 3 . . 2 12 6 Power 4 | . . . . . . 1 . . . . 2 1 Propulsion 12 | . . 2 . . . . 1 . . . 6 3 Utility 15 | . . 2 . . 4 1 . . . 2 4 2 Weapon 6 | . . 4 . . . . 2 . . . . . Highest Loss Streak 5 | . . 3 . . 2 1 3 . . 1 5 3 To Critical Strikes . | . . . . . . . . . . . . . Average Slot Usage (%) 93 | . 99 85 65 96 97 99 99 100 100 99 84 81 Engine 7 | . 14 14 14 14 9 8 7 7 7 7 1 . Treads 30 | . 28 27 28 28 36 36 37 38 38 37 17 1 Leg 2 | . . . . . . . . . . . 8 24 Device 6 | . 14 . . 11 4 4 4 4 7 5 5 13 Storage 9 | . 14 14 14 14 9 9 7 7 7 7 7 7 Processor 7 | . . . . . 4 9 10 15 15 15 9 . Hackware 2 | . . . . . 6 9 7 2 . . . . Protection 6 | . . . . . 8 4 6 7 7 8 9 12 Energy Cannon 2 | . 9 1 . 8 . 2 . 3 6 3 1 . Ballistic Gun 7 | . 15 25 . 9 9 13 10 . . 3 3 . Ballistic Cannon 3 | . . . . . 2 1 2 11 7 4 7 9 Launcher 1 | . . . . 4 . . . . . 3 1 4 Naked Turns . | . . . . . . . . . . . . . Heaviest Build 138 | 12 52 93 88 101 108 106 138 112 112 134 137 129 Greatest Support 111 | 40 40 40 40 40 80 80 108 108 108 111 111 83 Greatest Overweight (x) 5 | . 1 2 2 2 1 1 1 1 1 1 5 2 Average Overweight (x) 1 | . . 1 2 2 1 1 . . 1 1 1 1 Largest Inventory Capacity 25 | 8 20 25 25 25 25 25 25 25 25 25 25 25 Average Capacity 23 | 7 14 21 25 25 25 25 25 25 25 25 25 25 Most Carried 25 | 1 19 25 25 25 25 25 25 25 25 25 25 25 Average Carried 23 | . 8 19 24 24 24 24 24 24 25 24 24 24 Final Capacity 25 | 8 20 25 25 25 25 25 25 25 25 25 25 25 Final Carried 25 | 1 19 22 25 25 25 25 25 25 25 23 25 25 Class Distribution -------------------- 51% | Mutant 46% | Scavenger-Mutant Dominant Class ---------------- Mutant | -10/Materials Mutant | -10/Mines Mutant | -10/Exiles Scavenger-Mutant | -9/Mines Scavenger-Mutant | -8/Materials Scavenger-Mutant | -8/Storage Scavenger-Mutant | -7/Factory Mutant | -7/Lower Caves Mutant | -7/Lower Caves Mutant | -7/Zion Mutant | -7/Deep Caves Mutant | -6/Proximity Caves Resources | -11 -10 -10 -10 -9 -8 -8 -7 -7 -7 -7 -7 -6 ----------- Run | Yrd Mat Min Exi Min Mat Sto Fac Low Low Zio Dee Pro Matter Collected 8079 | 298 285 375 176 113 827 1916 1433 168 121 947 418 1002 Remotely 704 | . . . . . . . . . . 462 104 138 Salvage Created 8802 | 166 899 486 . 123 871 2343 1691 207 107 929 516 464 Parts 500 | 18 62 47 . 7 52 123 72 8 6 50 35 20 Haulers Intercepted 14 | . 2 . . . 3 6 2 . . . . 1 Recyclers Shooed 10 | 1 . . . . 1 4 4 . . . . . Parts Field Recycled 24 | . . . . . . . . . . 24 . . Retrieved Matter 187 | . . . . . . . . . . 187 . . Parts Self-Destructed 21 | . . . . . . . . 6 4 . . 11 Prevented 6 | . . . . . . . . . . . . 6 Kills | -11 -10 -10 -10 -9 -8 -8 -7 -7 -7 -7 -7 -6 ------- Run | Yrd Mat Min Exi Min Mat Sto Fac Low Low Zio Dee Pro Combat Hostiles Destroyed 155 | . 19 27 . 3 19 29 19 7 1 8 9 14 Melee 2 | . . . . . 2 . . . . . . . Guns 67 | . 3 14 . . 6 22 13 . . 2 7 . Cannons 42 | . 16 . . . 1 6 6 3 1 4 . 5 AOE 41 | . . 13 . 3 8 1 . 3 . 2 2 9 Classes Destroyed 23 | 3 6 3 . . . 3 1 2 . 2 1 2 Worker 18 | 2 . 1 . . 4 5 6 . . . . . Builder 9 | . 1 1 . . 2 3 2 . . . . . Tunneler 5 | 2 1 1 . . 1 . . . . . . . Hauler 14 | . 2 . . . 3 6 2 . . . . 1 Recycler 17 | 1 . 1 . 1 1 5 8 . . . . . Minesweeper 1 | . . . . . . . . 1 . . . . Mechanic 1 | . . . . . . 1 . . . . . . Operator 4 | . 2 . . . 1 1 . . . . . . Watcher 8 | . 3 . . . 2 2 1 . . . . . Swarmer 30 | . 3 12 . 3 8 . . 4 . . . . Grunt 51 | . 16 . . . 3 14 9 2 . . . 7 Brawler 2 | . . . . . . 1 . . . . . 1 Duelist 1 | . . . . . . 1 . . . . . . Sentry 25 | . . 2 . . 6 12 4 . 1 . . . Demolisher 1 | . . . . . . . . . . . . 1 Specialist 2 | . . . . . . . . . . . . 2 Hunter 8 | . . . . . 2 1 2 1 . . . 2 Programmer 5 | . . . . . . . 4 . . . . 1 Zionite 33 | . . . . . . . . . . 33 . . Z-Light 9 | . . . . . . . . . . . 9 . Tinkerer 5 | . . . . . . . . . . 5 . . Assembled 13 | . . 13 . . . . . . . . . . Surgeon 1 | . . . . . . . . . . 1 . . Thug 1 | . . . . . . . . . 1 . . . Butcher 2 | . . . . . . . . . . 2 . . Guerrilla 1 | . . 1 . . . . . . . . . . Mutant 6 | . . . . . . . . 1 . 5 . . Best Kill Streak 12 | 2 3 9 . 3 5 12 4 4 1 6 4 6 Combat Bots Only 9 | . 3 9 . 3 4 3 3 4 1 4 4 5 Max Kills in Single Turn 4 | 1 1 2 . 3 4 2 2 2 1 2 1 2 Gunslinging . | . . . . . . . . . . . . . Exploded 4 | . . 2 . 3 4 1 . 2 . 1 1 2 Melee 1 | . . . . . 1 . . . . . . . Uniques/NPCs Destroyed 1 | . . . . . . . . . . 1 . . Imprinter (-7/Zion) Combat | -11 -10 -10 -10 -9 -8 -8 -7 -7 -7 -7 -7 -6 -------- Run | Yrd Mat Min Exi Min Mat Sto Fac Low Low Zio Dee Pro Hostile Shots Fired 957 | . 41 130 . 3 111 90 215 19 23 125 85 115 Missed 302 | . 11 38 . 2 29 27 94 10 12 32 20 27 Damage Taken 10359 | . 333 1508 . 40 1193 993 1106 124 80 1493 1683 1806 Core 1228 | . 70 144 . 9 145 160 160 11 . 193 129 207 Absorbed by Shields 140 | . . . . . . 8 132 . . . . . Redirected to Shielding 245 | . . . . . 106 . . . . . 139 . Ignored by Resistances 433 | . . . . . . 35 69 . . 140 170 19 Regen/Repaired (Parts) 1160 | . . . . . 125 394 . . . 641 . . Core Remaining (%) 51 | 100 . . . 10 . 44 . . . . . . Volleys Fired 732 | 8 87 54 . 3 58 155 107 12 12 133 33 70 Largest 2 | 2 2 2 . 1 2 2 2 2 2 2 2 2 Hottest 125 | 60 120 125 . 30 100 103 96 113 113 113 74 96 Shots Fired 1232 | 16 135 86 . 3 97 288 209 24 16 188 63 107 Gun 724 | 16 59 68 . 2 72 211 156 . . 75 59 6 Cannon 417 | . 51 4 . . 20 77 53 22 14 82 2 92 Launcher 65 | . . 14 . 1 4 . . 2 2 31 2 9 Special 26 | . 25 . . . 1 . . . . . . . Kinetic 950 | 8 50 66 . 2 83 268 209 19 3 83 61 98 Thermal 213 | 4 85 6 . . 10 20 . 3 11 74 . . Explosive 65 | . . 14 . 1 4 . . 2 2 31 2 9 Electromagnetic 4 | 4 . . . . . . . . . . . . Robot Hit Streak 14 | 3 14 10 . 2 11 10 13 5 2 13 5 6 Robot Miss Streak 8 | 2 2 3 . 1 4 8 7 2 1 4 4 4 Penetration Max 1 | . . . . . . 1 1 . . . . 1 Secondary Targets 4 | . . 1 . . . 1 1 . . . 1 . Max Gunslinging Chain 1 | . . 1 . . . 1 1 . . . 1 . Shots Hit Robots 788 | 8 75 54 4 2 93 167 148 15 3 129 35 55 Core Hits 406 | 6 36 49 . 5 34 78 55 11 4 74 19 35 Critical Kills 4 | . . . . . . . 1 . . 3 . . Critical Parts Destroyed 16 | . . . . . 6 5 3 1 . 1 . . Critical Strikes 31 | . . . . . 10 6 6 2 . 5 1 1 Burn 1 | . . . . . 1 . . . . . . . Meltdown 1 | . . . . . . . . . . 1 . . Destroy 7 | . . . . . . 5 . . . 2 . . Blast 9 | . . . . . 2 1 2 1 . 1 1 1 Smash 12 | . . . . . 6 . 4 1 . 1 . . Sever 1 | . . . . . 1 . . . . . . . Melee Attacks 88 | . . . 4 . 43 1 16 6 . 16 1 1 Impact 68 | . . . . . 32 1 15 3 . 16 . 1 Slashing 11 | . . . . . 11 . . . . . . . Piercing . | . . . . . . . . . . . . . Sneak Attacks 26 | . . . 4 . 12 . 7 3 . . . . Combat Hostiles 1 | . . . . . . . 1 . . . . . Follow-up Attacks 8 | . . . . . 8 . . . . . . . Damage Inflicted 24610 | 97 1207 1679 . 146 3476 3645 4104 732 128 5358 1120 2918 Guns 9313 | 97 474 694 . 34 625 2655 2253 . . 1428 910 143 Cannons 6193 | . 637 52 . . 282 916 1085 372 83 1397 30 1339 Explosions 6042 | . . 931 . 112 792 74 175 251 45 2046 180 1436 Melee 2938 | . . . . . 1777 . 565 109 . 487 . . Ramming 28 | . . 2 . . . . 26 . . . . . Kinetic 13000 | 24 384 677 . 34 815 3390 3338 372 . 1544 940 1482 Thermal 2737 | 33 823 69 . . 92 181 175 . 83 1281 . . Explosive 5867 | . . 931 . 112 792 74 . 251 45 2046 180 1436 Electromagnetic 40 | 40 . . . . . . . . . . . . Impact 2688 | . . . . . 1527 . 565 109 . 487 . . Slashing 250 | . . . . . 250 . . . . . . . Piercing . | . . . . . . . . . . . . . Highest Corruption 6 | . 1 1 1 1 1 1 4 4 4 4 . 6 Average Corruption 1 | . 1 1 1 1 1 1 2 4 4 4 . 1 Corruption Purged 1 | . . . . . . . 1 . . . . . Corruption Blocked . | . . . . . . . . . . . . . Effects 154 | . 6 5 7 11 15 20 29 18 13 6 . 24 Message Errors 31 | . 2 3 1 2 2 2 6 2 1 3 . 7 Matter Fused 46 | . 2 . 3 3 8 6 10 2 6 2 . 4 Heat Flow Errors 6 | . . 1 . . . 2 1 1 . . . 1 Energy Discharges 17 | . . 1 2 4 1 3 1 3 1 . . 1 Parts Fused 2 | . . . . . . . 1 1 . . . . Data Loss (minor) 29 | . 1 . 1 2 2 1 7 5 3 . . 7 Data Loss (major) 5 | . . . . . 1 1 . 2 . . . 1 Misfires 11 | . 1 . . . 1 3 1 2 2 1 . . Alerts 4 | . . . . . . 2 1 . . . . 1 Weapon Failures 3 | . . . . . . . 1 . . . . 2 Overload Shots . | . . . . . . . . . . . . . Overflow Damage 1428 | . 4 28 . . 767 28 399 41 . 135 . 26 Projectiles 122 | . 4 10 . . . 28 34 3 . 28 . 15 Explosions 152 | . . 18 . . 38 . 73 . . 12 . 11 Melee 1154 | . . . . . 729 . 292 38 . 95 . . Knockbacks 28 | . . . . . 3 4 11 2 . 3 . 5 Impact 6 | . . . . . 1 . 2 . . 3 . . Kinetic 19 | . . . . . 1 4 7 2 . . . 5 Secondary 3 | . . . . . 1 . 2 . . . . . Self-Inflicted Damage 399 | . . 64 . 31 . . . . 36 166 . 102 Shots 15 | . . 4 . 1 . . . . 1 5 . 4 Rammed 3 | . . 1 . . . . 2 . . . . . Targets Rammed 4 | . . 2 . . . . 2 . . . . . Kicked . | . . . . . . . . . . . . . Crushed 1 | . . 1 . . . . . . . . . . Highest Temperature 479 | . 222 182 . 8 156 198 146 254 112 206 479 215 Average Temperature 60 | . 83 25 . 6 28 41 23 55 48 49 195 45 Received Heat Transfer 2323 | . 171 119 . . 324 483 294 29 12 153 585 153 Effects 3 | . 2 . . . . . . . . . 1 . Interference 2 | . 2 . . . . . . . . . . . Short Circuit 1 | . . . . . . . . . . . 1 . Siege Activations . | . . . . . . . . . . . . . Robots Corrupted . | . . . . . . . . . . . . . Combat Hostiles . | . . . . . . . . . . . . . Parts Fried 15 | . . . . . 6 . 4 2 . 3 . . Impact Corruptions 29 | . . . . . 18 . 7 1 . 3 . . Robots Melted 1 | . . . . . . . . . . 1 . . Combat Hostiles . | . . . . . . . . . . . . . Parts Melted 7 | . 1 . . . . 1 . . 1 4 . . Heat Transferred 4209 | 75 1695 148 . . 222 259 100 . 111 1599 . . Parts Sabotaged . | . . . . . . . . . . . . . Parts Stolen . | . . . . . . . . . . . . . Parts Stripped . | . . . . . . . . . . . . . Power Chain Reactions . | . . . . . . . . . . . . . Alert | -11 -10 -10 -10 -9 -8 -8 -7 -7 -7 -7 -7 -6 ------- Run | Yrd Mat Min Exi Min Mat Sto Fac Low Low Zio Dee Pro Peak Influence 905 | 25 275 394 . 102 318 905 470 . . . . . Initial 411 | . 16 82 . . . 133 411 . . . . . Average 219 | 7 123 155 . 37 93 379 306 . . . . . Maximum Alert Level 3 | . 1 1 . . 1 3 2 . . . . . Low Security (%) 53 | 100 78 71 . 100 87 40 7 . . . . . Level 1 29 | . 21 28 . . 12 14 67 . . . . . Level 2 14 | . . . . . . 36 25 . . . . . Level 3 1 | . . . . . . 8 . . . . . . Level 4 . | . . . . . . . . . . . . . Level 5 . | . . . . . . . . . . . . . High Security . | . . . . . . . . . . . . . Max Security . | . . . . . . . . . . . . . Squads Dispatched 28 | . 6 . . . 3 8 11 . . . . . Investigation 9 | . 4 . . . . 2 3 . . . . . Extermination 5 | . . . . . . . 5 . . . . . Reinforcement 10 | . 2 . . . 3 2 3 . . . . . Assault . | . . . . . . . . . . . . . Garrison 4 | . . . . . . 4 . . . . . . Intercept . | . . . . . . . . . . . . . Searches Triggered . | . . . . . . . . . . . . . Construction Impeded 2 | . . . . . 1 . 1 . . . . . Haulers Reinforced 2 | . . . . . . . 2 . . . . . Active Scanning Responses . | . . . . . . . . . . . . . Cargo Convoy Interrupts . | . . . . . . . . . . . . . Stealth | -11 -10 -10 -10 -9 -8 -8 -7 -7 -7 -7 -7 -6 --------- Run | Yrd Mat Min Exi Min Mat Sto Fac Low Low Zio Dee Pro Distress Signals 22 | . . . . . 3 3 1 . . . . 15 Communications Jammed . | . . . . . . . . . . . . . Distress Signals . | . . . . . . . . . . . . . Times Spotted 255 | . 33 33 . 3 31 40 26 9 2 53 9 16 Peak Tracking Total 12 | . 4 12 . 3 7 4 4 4 1 8 4 5 Tactical Retreats 28 | . 2 1 . . 2 4 2 . 1 16 . . Traps | -11 -10 -10 -10 -9 -8 -8 -7 -7 -7 -7 -7 -6 ------- Run | Yrd Mat Min Exi Min Mat Sto Fac Low Low Zio Dee Pro Traps Triggered 7 | . 2 . . . . 1 4 . . . . . Indirectly . | . . . . . . . . . . . . . Trap Hack Attempts . | . . . . . . . . . . . . . Triggered . | . . . . . . . . . . . . . Disarmed . | . . . . . . . . . . . . . Reprogrammed . | . . . . . . . . . . . . . Reused . | . . . . . . . . . . . . . Traps Extracted 2 | . . . . . . . . 1 . 1 . . Installed 2 | . . . . . . 1 . . . 1 . . Triggered . | . . . . . . . . . . . . . Most Traps Carried 4 | . . . . 2 2 2 . 4 4 4 4 4 Machines | -11 -10 -10 -10 -9 -8 -8 -7 -7 -7 -7 -7 -6 ---------- Run | Yrd Mat Min Exi Min Mat Sto Fac Low Low Zio Dee Pro Machines Disabled 24 | . . . . . . 8 8 1 . 6 . 1 Max in Single Turn 4 | . . . . . . 2 4 1 . 2 . 1 Garrison Access 1 | . . . . . . . 1 . . . . . Machines Repaired . | . . . . . . . . . . . . . Machines Dismantled . | . . . . . . . . . . . . . Machines Sabotaged . | . . . . . . . . . . . . . Overloaded Fab Kills . | . . . . . . . . . . . . . Hacking | -11 -10 -10 -10 -9 -8 -8 -7 -7 -7 -7 -7 -6 --------- Run | Yrd Mat Min Exi Min Mat Sto Fac Low Low Zio Dee Pro Machines Accessed 36 | . 8 . 1 . 5 12 9 . 1 . . . Terminals 22 | . 6 . . . 3 9 4 . . . . . Fabricators 2 | . . . . . . . 2 . . . . . Repair Stations 4 | . . . . . 1 2 1 . . . . . Recycling Units 4 | . 2 . . . 1 1 . . . . . . Scanalyzers 1 | . . . . . . . 1 . . . . . Garrison Access 1 | . . . . . . . 1 . . . . . Total Hacks 97 | . 21 . 1 . 16 34 23 . 2 . . . Successful 67 | . 13 . 1 . 14 21 16 . 2 . . . Failed 30 | . 8 . . . 2 13 7 . . . . . Catastrophic 6 | . 1 . . . 1 2 2 . . . . . Database Lockouts . | . . . . . . . . . . . . . Manual 40 | . 12 . 1 . 7 12 4 . . 4 . . Terminals 65 | . 19 . . . 10 22 14 . . . . . Fabricators 5 | . . . . . . . 5 . . . . . Repair Stations 14 | . . . . . 2 11 1 . . . . . Recycling Units 7 | . 2 . . . 4 1 . . . . . . Scanalyzers 2 | . . . . . . . 2 . . . . . Garrison Access 1 | . . . . . . . 1 . . . . . Terminal Hacks 34 | . 7 . 1 . 7 9 8 . 2 . . . Record 2 | . . . . . . . . . 2 . . . Part Schematic 2 | . 1 . . . 1 . . . . . . . Robot Analysis 2 | . 1 . . . 1 . . . . . . . Prototype ID Bank 4 | . 1 . . . . 2 1 . . . . . Open Door 3 | . . . . . . 3 . . . . . . Branch Access Points 1 | . . . . . . . 1 . . . . . Terminal Index 1 | . . . . . . 1 . . . . . . Repair Station Index 1 | . . . . . . . 1 . . . . . Alert Level 4 | . 1 . . . . 2 1 . . . . . Unreport Threat 1 | . . . . . . . 1 . . . . . Locate Traps 5 | . 2 . . . 2 . 1 . . . . . Hauler Manifests 3 | . 1 . . . 1 1 . . . . . . Registered Components 1 | . . . . . 1 . . . . . . . Zone Layout 3 | . . . . . 1 . 2 . . . . . Derelict Proto ID Bank 1 | . . . 1 . . . . . . . . . Fabricator Hacks 4 | . . . . . . . 4 . . . . . Network Status 1 | . . . . . . . 1 . . . . . Load Schematic 1 | . . . . . . . 1 . . . . . Build 2 | . . . . . . . 2 . . . . . Repair Station Hacks 10 | . . . . . 2 8 . . . . . . Scan Component 5 | . . . . . 1 4 . . . . . . Repair 5 | . . . . . 1 4 . . . . . . Recycling Unit Hacks 3 | . . . . . 2 1 . . . . . . Retrieve Matter 1 | . . . . . 1 . . . . . . . Retrieve Components 2 | . . . . . 1 1 . . . . . . Scanalyzer 2 | . . . . . . . 2 . . . . . Insert Component 1 | . . . . . . . 1 . . . . . Analyze 1 | . . . . . . . 1 . . . . . Garrison Access Hacks 1 | . . . . . . . 1 . . . . . Seal Access 1 | . . . . . . . 1 . . . . . Unauthorized Hacks 13 | . 6 . . . 3 3 1 . . . . . Terminals 9 | . 4 . . . 1 3 1 . . . . . Assimilate 1 | . . . . . . 1 . . . . . . Botnet 8 | . 4 . . . 1 2 1 . . . . . Fabricators . | . . . . . . . . . . . . . Repair Stations . | . . . . . . . . . . . . . Recycling Units 4 | . 2 . . . 2 . . . . . . . Reject 1 | . . . . . 1 . . . . . . . Mask 1 | . . . . . 1 . . . . . . . Tunnel 2 | . 2 . . . . . . . . . . . Scanalyzers . | . . . . . . . . . . . . . Garrison Access . | . . . . . . . . . . . . . Data Cores Recovered 1 | . 1 . . . . . . . . . . . Used . | . . . . . . . . . . . . . Hacking Detections 26 | . 6 . . . 5 7 8 . . . . . Full Trace Events 7 | . 2 . . . 1 2 2 . . . . . Feedback Events . | . . . . . . . . . . . . . Feedback Blocked . | . . . . . . . . . . . . . Robot Schematics Acquired . | . . . . . . . . . . . . . Robots Built . | . . . . . . . . . . . . . Authchips . | . . . . . . . . . . . . . Time . | . . . . . . . . . . . . . Total Robot Build Rating . | . . . . . . . . . . . . . Part Schematics Acquired 3 | . 1 . . . 1 . 1 . . . . . Parts Built 4 | . . . . . . . 4 . . . . . Authchips . | . . . . . . . . . . . . . Time 190 | . . . . . . . 190 . . . . . Total Part Build Rating 20 | . . . . . . . 20 . . . . . Parts Repaired 5 | . . . . . 1 4 . . . . . . Time 155 | . . . . . 26 129 . . . . . . Parts Recycled . | . . . . . . . . . . . . . Recycled Matter . | . . . . . . . . . . . . . Retrieved Matter . | . . . . . . . . . . . . . Retrieved Components 10 | . . . . . 8 2 . . . . . . Parts Scanalyzed 1 | . . . . . . . 1 . . . . . Part Schematics Acquired 1 | . . . . . . . 1 . . . . . Parts Damaged . | . . . . . . . . . . . . . Bothacking | -11 -10 -10 -10 -9 -8 -8 -7 -7 -7 -7 -7 -6 ------------ Run | Yrd Mat Min Exi Min Mat Sto Fac Low Low Zio Dee Pro Used RIF Installer . | . . . . . . . . . . . . . Robots Hacked 4 | . . . 4 . . . . . . . . . Non-combat 3 | . . . 3 . . . . . . . . . Combat 1 | . . . 1 . . . . . . . . . Robot Hacks Applied 4 | . . . 4 . . . . . . . . . parse_system 4 | . . . 4 . . . . . . . . . Relay Couplers Released . | . . . . . . . . . . . . . Fabnet Peak Effective % . | . . . . . . . . . . . . . Robots Rewired 4 | . . . . . . . 1 3 . . . . Allies Hacked . | . . . . . . . . . . . . . Hacks Repelled . | . . . . . . . . . . . . . Allies | -11 -10 -10 -10 -9 -8 -8 -7 -7 -7 -7 -7 -6 -------- Run | Yrd Mat Min Exi Min Mat Sto Fac Low Low Zio Dee Pro Total Allies 16 | . . . . . . 10 1 3 2 . . . Largest Group 10 | . . . . . . 10 9 5 2 . . . Highest-Rated Group 173 | . . . . . . 173 162 125 62 . . . Highest-Rated Ally 31 | . . . . . . 29 29 31 31 . . . Total Orders 10 | . . . . . . 2 4 4 . . . . STAY 5 | . . . . . . 1 2 2 . . . . ROAM 1 | . . . . . . . . 1 . . . . FOLLOW 4 | . . . . . . 1 2 1 . . . . Ally Attacks 90 | . . . . . . 10 40 27 13 . . . Total Damage 1305 | . . . . . . 163 588 331 223 . . . Kills 9 | . . . . . . 2 5 2 . . . . Allies Corrupted . | . . . . . . . . . . . . . Allies Melted . | . . . . . . . . . . . . . Intel | -11 -10 -10 -10 -9 -8 -8 -7 -7 -7 -7 -7 -6 ------- Run | Yrd Mat Min Exi Min Mat Sto Fac Low Low Zio Dee Pro Robot Analysis Total 2 | . 1 . . . 1 . . . . . . . Derelict Logs Recovered 6 | . . 1 . 1 . . . 2 . 2 . . Drone Launches . | . . . . . . . . . . . . . Drone Recoveries . | . . . . . . . . . . . . . Exploration | -11 -10 -10 -10 -9 -8 -8 -7 -7 -7 -7 -7 -6 ------------- Run | Yrd Mat Min Exi Min Mat Sto Fac Low Low Zio Dee Pro Turns Passed 22994 | 107 1820 1325 1258 1030 1934 2697 3269 951 740 3825 1958 2080 Spaces Moved 7754 | 47 696 459 391 315 530 677 1171 472 296 1405 610 685 Core 3 | 3 . . . . . . . . . . . . Treads 6749 | 44 696 459 391 315 530 677 1171 472 296 1405 293 . Legs 1002 | . . . . . . . . . . . 317 685 Wheels . | . . . . . . . . . . . . . Hover . | . . . . . . . . . . . . . Flight . | . . . . . . . . . . . . . Fastest Speed 50 | 50 160 240 320 320 240 240 160 160 240 240 242 200 Average Speed 241 | 152 172 253 320 320 240 240 230 188 240 241 293 242 Slowest Speed 560 | 160 240 320 320 320 240 240 240 240 240 242 560 310 Overloaded Moves . | . . . . . . . . . . . . . Propulsion Burnouts . | . . . . . . . . . . . . . Robots Hopped . | . . . . . . . . . . . . . Cave-ins Triggered . | . . . . . . . . . . . . . Exploration Rate (%) 63 | 4 98 74 72 69 36 95 24 60 59 91 76 61 Regions Visited 12 Branch Regions 9 Pre-discovered Areas 7 | . 2 1 . 1 . . . . . 3 . . Known Exits Taken 2 | . . . . . . . 1 1 . . . . Unknown Exits Taken 10 | 1 1 1 1 1 1 1 . . 1 1 1 . Scrap Searched 8 | . . 1 . 1 . . . 2 . 4 . . Spaces Dug 55 | . . . . . 8 9 10 23 5 . . . Terrain Destroyed 449 | . 3 70 . 12 53 46 32 26 17 55 25 110 Melee 14 | . . . . . 5 . 9 . . . . . Projectile 91 | . 3 . . . 6 24 5 3 4 8 19 19 AOE 342 | . . 70 . 12 42 22 16 23 13 47 6 91 Terrain Rammed . | . . . . . . . . . . . . . Walls Destroyed . | . . . . . . . . . . . . . Machines Disabled . | . . . . . . . . . . . . . Actions | -11 -10 -10 -10 -9 -8 -8 -7 -7 -7 -7 -7 -6 --------- Run | Yrd Mat Min Exi Min Mat Sto Fac Low Low Zio Dee Pro Total 10660 | 63 1132 544 399 336 1030 1511 1522 505 311 1606 709 992 Wait 1604 | . 308 4 . 3 317 603 143 5 2 16 14 189 Move 7742 | 46 695 458 390 314 529 676 1170 471 295 1404 609 685 Hop . | . . . . . . . . . . . . . Pick Up 102 | . 18 9 2 6 15 14 14 2 . 3 9 10 Fast Attach 51 | 8 4 . . . 8 3 10 . . 1 10 7 Attach 38 | . . 7 1 2 9 2 5 1 . 2 6 3 Detach 23 | 1 3 . 2 . 6 3 2 . . . 4 2 Swap 172 | . 8 8 . 4 32 26 32 6 2 25 14 15 Drop 110 | . 9 2 . 4 23 25 21 2 . 5 9 10 Fire 732 | 8 87 54 . 3 58 155 107 12 12 133 33 70 Melee 78 | . . . 4 . 33 1 16 6 . 16 1 1 Ram . | . . . . . . . . . . . . . Kick . | . . . . . . . . . . . . . Crush 4 | . . 2 . . . . 2 . . . . . Escape Stasis 2 | . . . . . . 2 . . . . . . Rewire . | . . . . . . . . . . . . . Trap 2 | . . . . . . 1 . . . 1 . . Miscellaneous . | . . . . . . . . . . . . . Route ------- -11/Scrapyard -10/Materials (discovered 6 exits: [*Mat x3] / [*Min x2] / [*Sub]) -10/Mines (discovered 3 exits: [*Mat x2] / *Exi) -10/Exiles -9/Mines -8/Materials (discovered 2 exits: *Sto x2) -8/Storage (discovered 2 exits: *Fac / [*Rec]) -7/Factory (discovered 2 exits: *Low x2) -7/Lower Caves -7/Lower Caves (discovered 2 exits: [*Fac] / *Zio) -7/Zion (discovered 2 exits: [*Dee] / [*Pro]) -7/Deep Caves -6/Proximity Caves History --------- Turn | Location | Event 20 | -11/Scrapyard | Discovered new exit (range 16) 108 | -11/Scrapyard | Entered Materials 257 | -10/Materials | Discovered new exit (range 15) 301 | -10/Materials | Build established: Mutant 362 | -10/Materials | Discovered new exit (range 16) 611 | -10/Materials | Discovered new exit (range 4) 1020 | -10/Materials | Discovered new exit (range 3) 1239 | -10/Materials | Discovered new exit (range 16) 1620 | -10/Materials | Discovered new exit (range 8) 1928 | -10/Materials | Entered Mines 1962 | -10/Mines | Met a Derelict bent on vengeance 2032 | -10/Mines | Learned Materials stockpile data 2062 | -10/Mines | Learned location of Storage (-8) 2220 | -10/Mines | Assembled infested the area 2225 | -10/Mines | Assisted by a Guerilla fighting off Assembled 2268 | -10/Mines | Destroyed 9 combat bots 2324 | -10/Mines | A weapon hastily lodged in a ceiling crevice suddenly fell to the ground 2487 | -10/Mines | Core integrity fell below 50% 2718 | -10/Mines | Discovered new exit (range 6) 2790 | -10/Mines | Discovered new exit (range 9) 3149 | -10/Mines | Core integrity fell below 20% 3177 | -10/Mines | Lost 3 parts (1u2w) 3240 | -10/Mines | Deemed a non-threat by the Exiles lab entrance 3240 | -10/Mines | Discovered new exit (range 5) 3253 | -10/Mines | Entered Exiles 3334 | -10/Exiles | Met 8R-AWN 3386 | -10/Exiles | Met EX-HEX 3475 | -10/Exiles | Met EX-BIN 3510 | -10/Exiles | Aligned with FarCom system 3514 | -10/Exiles | Given EX-Vault access code 3587 | -10/Exiles | Opened EX-Vault 3616 | -10/Exiles | Found Cloak of Protection 3681 | -10/Exiles | Warned to stay clear of 0b10 Research branches 3774 | -10/Exiles | Met EX-DEC 4476 | -10/Exiles | Discovered new exit (range 14) 4511 | -10/Exiles | Left Exiles lab with Cloak of Protection 4511 | -10/Exiles | Entered Mines 4716 | -9/Mines | Found a hidden stash of uninstalled traps 5174 | -9/Mines | Build established: Scavenger-Mutant 5317 | -9/Mines | Found a damaged Exp. Sensor Array with a note attached 5324 | -9/Mines | Found Prototype Device 5491 | -9/Mines | Discovered new exit (range 14) 5541 | -9/Mines | Entered Materials 5541 | -8/Materials | Evolved 4 slots: Propulsion x2, Utility x2 5546 | -8/Materials | Identified Exp. Sensor Array 5739 | -8/Materials | Discovered new exit (range 14) 6567 | -8/Materials | Discovered new exit (range 17) 6683 | -8/Materials | Repaired Lgt. Treads 7475 | -8/Materials | Entered Storage 7906 | -8/Storage | Repaired Lgt. Treads 7936 | -8/Storage | Repaired Lgt. Treads 8481 | -8/Storage | Repaired Imp. Assault Rifle 8507 | -8/Storage | Repaired Grenade Launcher 8939 | -8/Storage | Garrison activated, responded to threat 9299 | -8/Storage | Garrison activated, responded to threat 9458 | -8/Storage | Used back door to open Recycling access 9458 | -8/Storage | Discovered new exit (range 5) 9515 | -8/Storage | Core integrity fell below 50% 9852 | -8/Storage | Discovered new exit (range 16) 9935 | -8/Storage | Assisted by bots powering up and referring to "LRC-V3" 10172 | -8/Storage | Entered Factory 10172 | -7/Factory | Accompanied by 8 allies 10172 | -7/Factory | Evolved 2 slots: Propulsion x1, Utility x1 10223 | -7/Factory | Build established: Commander-Mutant 10243 | -7/Factory | Discovered new exit (range 10) 10286 | -7/Factory | Lost 5 allies 10554 | -7/Factory | Fabricated Railgun? 10554 | -7/Factory | Build established: Scavenger-Mutant 11048 | -7/Factory | Fabricated Lrn. Tractor Beam? 12474 | -7/Factory | Identified exit to Lower Caves 12887 | -7/Factory | Lost 3 parts (1n2w) 13441 | -7/Factory | Entered Lower Caves 13441 | -7/Lower Caves | Accompanied by 3 allies 13507 | -7/Lower Caves | Attacked by a delusional Derelict stockpiling Unaware 14105 | -7/Lower Caves | Encountered a Warlord checkpoint 14118 | -7/Lower Caves | Identified exit to Lower Caves 14215 | -7/Lower Caves | Build established: Mutant 14336 | -7/Lower Caves | Learned Factory stockpile data 14392 | -7/Lower Caves | Entered another Lower Caves area 14400 | -7/Lower Caves | Discovered new exit (range 15) 14523 | -7/Lower Caves | Encountered a Warlord checkpoint 14675 | -7/Lower Caves | A Commander dispatched an escort 14684 | -7/Lower Caves | Learned location of 1 exit from Research 14765 | -7/Lower Caves | Attracted the attention of an 0b10 checkpoint 14947 | -7/Lower Caves | Spotted B-75 Beast 15108 | -7/Lower Caves | Discovered new exit (range 9) 15132 | -7/Lower Caves | Entered Zion 15264 | -7/Zion | Learned location of Warlord (-5) 15423 | -7/Zion | Discovered new exit (range 16) 15516 | -7/Zion | System corruption cleaned by Quarantine Array 15555 | -7/Zion | Learned Factory garrison access intel 15813 | -7/Zion | Learned Factory emergency access door positions 16228 | -7/Zion | Visited the Megawrench Repair Shop 16228 | -7/Zion | Megawrench repaired 10 parts 17189 | -7/Zion | Rebuked by Imprinter 17208 | -7/Zion | Warned about trapping Zion interior 17237 | -7/Zion | Attempted to imprint without authorization 17237 | -7/Zion | Attacked by Zionites 18158 | -7/Zion | Build established: Scavenger-Mutant 18494 | -7/Zion | Destroyed Imprinter 18523 | -7/Zion | Extracted access codes from Imprinter's data core 18692 | -7/Zion | Core integrity fell below 50% 18911 | -7/Zion | Opened final containment barrier to the Deep Caves 18949 | -7/Zion | Discovered new exit (range 3) 18949 | -7/Zion | Saw the warning signs outside the Deep Caves entrance 18957 | -7/Zion | Entered Deep Caves 19451 | -7/Deep Caves | Z-Facility disabled 19493 | -7/Deep Caves | Lost 3 parts (1p2n) 19493 | -7/Deep Caves | Found Prototype Protection 19493 | -7/Deep Caves | Identified Zio. Weapon Casing 19657 | -7/Deep Caves | Lost 5 parts (1p2n2u) 19878 | -7/Deep Caves | Lost 4 parts (2n2u) 20054 | -7/Deep Caves | Found Prototype Protection 20054 | -7/Deep Caves | Identified Zio. Heavy Carapace 20063 | -7/Deep Caves | Found Zio. Heavy Carapace 20140 | -7/Deep Caves | Build established: Mutant 20839 | -7/Deep Caves | Discovered new exit (range 14) 20867 | -7/Deep Caves | Found Surveybot 24 Chip 20873 | -7/Deep Caves | Found Surveybot 24 Scanner 20915 | -7/Deep Caves | Entered Proximity Caves 21338 | -6/Proximity Caves | Lost 3 parts (2n1u) 21354 | -6/Proximity Caves | Found Imp. Powered Armor 21358 | -6/Proximity Caves | Found Imp. Powered Armor 22064 | -6/Proximity Caves | Acquired the password to a Derelict Tinkerer's latest research 22190 | -6/Proximity Caves | Core integrity fell below 20% 22773 | -6/Proximity Caves | Caught by Unaware searching for contraband prototypes 22968 | -6/Proximity Caves | Caught by Unaware searching for contraband prototypes 22995 | -6/Proximity Caves | Destroyed by X-62 Marksman with Pulse Rifle Last Messages --------------- 22910_ Acquired 4 matter. 22914_ Acquired 3 matter. 22918_ Acquired 4 matter. 22940_ Acquired 3 matter. 22946_ Acquired 1 matter. 22954_ Acquired 3 matter. 22958_ Acquired 5 matter. 22958_ Acquired 3 matter. 22958_ Acquired 4 matter. 22961_ Acquired 5 matter. 22961_ Acquired 3 matter. 22961_ Acquired 4 matter. 22961_ Acquired 5 matter. 22967_ Penetrated by Slug. 22968_ X-62 Marksman: "CONFIRMED SUSPICIOUS DERELICT. COMMENCE PROTOTYPE CONTRABAND SEARCH." 22989_ X-62 Marksman knocked back. 22989_ Penetrated by Slug. 22993_ HM0 YX>F6ZLGKNV2FR6U%Y:X/GWXO Map ----- +----------------------------------------------------+ | ????????####?# % % ##???#?????#???????????? | | ?????????????##% #?????????????????????? | | ??????????????## % %%##??????#?????????????? | | ???????????????## % #????????#????????#??? | | ????????????????# ######???????????????? | | ???????????????## #### #???????????????? | | ???????????????# #?# ####"############ | | ???????????????## ### | | ????????????????# % # % | | ???????????????## ### # ######"####"###" | | ???????#####?### ##?# # #????????????## | | ???????# ### #??# ## #?????????????? | | ?????#??# ####??# #?????????????? | | ??##"# ## % ##???# # #?????????????? | | #?#X # #???# ## # ##?????????#???? | | ??#"" % ##### ### ################## | | ??##"""# % %% %###" | | ???###### % # % ### ### | | ????????# % ######## ??######?# ############# | | ????????## % % #####?######??????# #???????????? | | ?????????# % ##?## #????### #???????????? | | ????????## % % #?# ##???# ###?????????? | | #??#????# %% #?# ##### ##?????????? | | ????????#####% #?# ## #??????#??# | | ????????????###### ### ##?????????? | | ?#?????????#?????# ##@ #####?????????? | | ??????????######## #### ##?????????????? | | #??#??????# ###x #####??###??????????????? | | ????????#?# ##### ##?##;#?????????????????????#?? | | ?????#????# #???# #???##????????????????????????? | | #?????#???# #???###?????????????????????????????? | | ??????????# #???????????????????????????????????? | | #??#????### #????#??????????????????????????????? | | ????????# #???????????????????????????????????? | | ?#???#??# ####???????????????????????????????????? | | ?#??#???# #??????????????????????????????????????? | | ????????# #??????????????????????????????????????? | | ?#??##### #???#??????????????????????????????????? | | #???# #???????#??????????????????????????????? | | ##??# ####??????????????????????????????????????? | | ##?# #?????????????????????????????????????????? | | #?# #?????#???????????????????????????????????? | | #?# #?????????????????????????????????????????? | | #?# #??????##?????????????????????????????????? | | ###?# ##?#####???#??????????????????????????????? | | #???# ### #??????????????????????????????????? | | #???# ##?????????????????????????????????? | | ##### #??????????????????????????????????? | | ### ### #??????????????????????????????????? | | #?## ### #??????????????????????????????????? | +----------------------------------------------------+ Best States ------------- Heat Dissipation 60 Energy Generation 27 Energy Capacity 290 Matter Stores 300 Matter Capacity 300 Sight Range 20 Terrain Scan Range 24 Terrain Scan Density 10 Cloak Strength 5 Armor Coverage 1200 Resistance: KI 30 Resistance: TH 15 Propulsion Shielding 66 Weapon Shielding 100 Evasion (%) 40 Targeting Accuracy 8 Recoil Reduction 5 Kinecelleration 30 Offensive Hacking 10 Authchip Count 1 Trap Extractor Capacity 6 Item Schematics ----------------- Cargo Storage Unit | -10/Materials | Hacked Lrn. Tractor Beam | -8/Materials | Hacked Railgun | -7/Factory | Scanalyzed Robot Schematics ------------------ None Fabricated ------------ Railgun | x2 | -7/Factory | Preloaded Lrn. Tractor Beam | x2 | -7/Factory Alien Tech Used ----------------- None Achievements -------------- Monster What Is This Thing? Challenges ------------ None Game ------ Seed ModifiedDataMinigun Manual? 0 Play Time 02:21:31 Cumulative 132.8 hours Start 2024.06.03 @ 15:22:39 End 2024.06.04 @ 09:11:19 Sessions 5 Manual Loads 0 Difficulty Rogue Special Mode None Game No. 61 Rogue 61 Adventurer 0 Explorer 0 Win Type - Total 2 Types 1/0/1/0/0/0/0/0/0 Lore% 62 Gallery% 74 Achievement% 56 Wizard Run 0 Options --------- Layout 1 ASCII 0 Keyboard 0 Movement Mouse Keybinds 0 Fullscreen 2 Font 18/SmallcapsGlow Map View 50x40 Zoom Use 0% Tactical HUD 1 Map Filters NONE Filters NONE Steam 1 RUN: 43f7056c-e1ff-49c5-8266-abf4b16b53b6